[Event "Titled Tuesday Blitz April 18 Early 2023"]
[White "Mouhamad, Joachim"]
[Black "Matinian, Nikita"]
[WhiteFideId "656410"]
[BlackFideId "24129100"]
[WhiteElo "2125"]
[BlackElo "2422"]
[Result "0-1"]
[Round "06"]
[TimeControl "180+2"]
[Date "2023.04.18"]
[WhiteClock "0:00:03"]
[BlackClock "0:00:25"]

1. e4 {[%clk 0:03:00]}  c5 {[%clk 0:02:59]} 2. Nf3 {[%clk 0:03:00]}  e6 {[%clk 0:03:00]} 3. d4 {[%clk 0:03:01]}  cxd4 {[%clk 0:03:01]} 4. Nxd4 {[%clk 0:03:01]}  Nc6 {[%clk 0:03:02]} 5. Nc3 {[%clk 0:03:00]}  Qc7 {[%clk 0:03:01]} 6. Be3 {[%clk 0:02:59]}  a6 {[%clk 0:03:01]} 7. Qd2 {[%clk 0:02:58]}  Nf6 {[%clk 0:03:02]} 8. O-O-O {[%clk 0:02:57]}  b5 {[%clk 0:03:01]} 9. Nxc6 {[%clk 0:02:56]}  Qxc6 {[%clk 0:03:01]} 10. f3 {[%clk 0:02:46]}  Bb7 {[%clk 0:03:01]} 11. Kb1 {[%clk 0:02:42]}  Rc8 {[%clk 0:02:58]} 12. g4 {[%clk 0:02:36]}  h6 {[%clk 0:02:52]} 13. h4 {[%clk 0:02:34]}  d5 {[%clk 0:02:47]} 14. e5 {[%clk 0:02:27]}  Nd7 {[%clk 0:02:45]} 15. Bd4 {[%clk 0:02:22]}  Nb6 {[%clk 0:02:36]} 16. Rh2 {[%clk 0:01:44]}  b4 {[%clk 0:02:27]} 17. Ne4 {[%clk 0:01:33]}  dxe4 {[%clk 0:02:10]} 18. Bxb6 {[%clk 0:01:33]}  Be7 {[%clk 0:02:00]} 19. Bd4 {[%clk 0:01:21]}  exf3 {[%clk 0:01:56]} 20. Bd3 {[%clk 0:01:18]}  Rd8 {[%clk 0:01:25]} 21. Be3 {[%clk 0:01:13]}  Qc7 {[%clk 0:01:04]} 22. Bf4 {[%clk 0:01:09]}  Be4 {[%clk 0:00:55]} 23. Qe3 {[%clk 0:00:53]}  Bxd3 {[%clk 0:00:54]} 24. cxd3 {[%clk 0:00:40]}  Qc6 {[%clk 0:00:52]} 25. Rc2 {[%clk 0:00:37]}  Qd5 {[%clk 0:00:50]} 26. Rc7 {[%clk 0:00:35]}  Bxh4 {[%clk 0:00:46]} 27. g5 {[%clk 0:00:29]}  f2 {[%clk 0:00:39]} 28. gxh6 {[%clk 0:00:17]}  gxh6 {[%clk 0:00:40]} 29. Rcc1 {[%clk 0:00:10]}  Rg8 {[%clk 0:00:32]} 30. Bxh6 {[%clk 0:00:04]}  Rg3 {[%clk 0:00:28]} 31. Qe2 {[%clk 0:00:02]}  Rxd3 {[%clk 0:00:27]} 32. Rxd3 {[%clk 0:00:03]}  Qxd3+ {[%clk 0:00:27]} 33. Qxd3 {[%clk 0:00:03]}  Rxd3 {[%clk 0:00:28]} 34. Rf1 {[%clk 0:00:03]}  Rg3 {[%clk 0:00:25]} 0-1


[Site "https://www.chess.com"]

[Event "Titled Tuesday Blitz April 18 Early 2023"]
[White "Hua, Lefong"]
[Black "Jaskolka, Tomasz"]
[WhiteFideId "2602253"]
[BlackFideId "1170791"]
[WhiteElo "2639"]
[BlackElo "2155"]
[Result "1/2-1/2"]
[Round "06"]
[TimeControl "180+2"]
[Date "2023.04.18"]
[WhiteClock "0:00:15"]
[BlackClock "0:00:20"]

1. d4 {[%clk 0:03:00]}  d5 {[%clk 0:02:58]} 2. c4 {[%clk 0:03:01]}  e5 {[%clk 0:02:58]} 3. e3 {[%clk 0:03:00]}  exd4 {[%clk 0:02:56]} 4. Qxd4 {[%clk 0:02:59]}  Nf6 {[%clk 0:02:55]} 5. cxd5 {[%clk 0:02:57]}  Qxd5 {[%clk 0:02:54]} 6. Qxd5 {[%clk 0:02:57]}  Nxd5 {[%clk 0:02:54]} 7. a3 {[%clk 0:02:57]}  Bd6 {[%clk 0:02:52]} 8. Nf3 {[%clk 0:02:50]}  Nc6 {[%clk 0:02:52]} 9. Nbd2 {[%clk 0:02:39]}  Be6 {[%clk 0:02:46]} 10. Nc4 {[%clk 0:02:31]}  Be7 {[%clk 0:02:44]} 11. Be2 {[%clk 0:02:28]}  O-O-O {[%clk 0:02:40]} 12. O-O {[%clk 0:02:27]}  Rhe8 {[%clk 0:02:30]} 13. Bd2 {[%clk 0:02:16]}  Bf6 {[%clk 0:02:26]} 14. Rad1 {[%clk 0:02:07]}  g5 {[%clk 0:02:17]} 15. h3 {[%clk 0:02:01]}  h5 {[%clk 0:02:17]} 16. e4 {[%clk 0:01:44]}  Nf4 {[%clk 0:02:10]} 17. Bxf4 {[%clk 0:01:41]}  gxf4 {[%clk 0:02:11]} 18. b3 {[%clk 0:01:15]}  Be7 {[%clk 0:01:24]} 19. b4 {[%clk 0:01:10]}  Bf6 {[%clk 0:01:20]} 20. b5 {[%clk 0:01:04]}  Nd4 {[%clk 0:01:18]} 21. Nxd4 {[%clk 0:01:04]}  Bxd4 {[%clk 0:01:19]} 22. Rc1 {[%clk 0:00:59]}  h4 {[%clk 0:01:19]} 23. Rfd1 {[%clk 0:00:55]}  f3 {[%clk 0:01:07]} 24. Bxf3 {[%clk 0:00:51]}  Bxc4 {[%clk 0:01:06]} 25. Rxc4 {[%clk 0:00:51]}  Be5 {[%clk 0:00:58]} 26. Bg4+ {[%clk 0:00:45]}  Kb8 {[%clk 0:00:58]} 27. Kf1 {[%clk 0:00:30]}  Rxd1+ {[%clk 0:00:55]} 28. Bxd1 {[%clk 0:00:31]}  Rd8 {[%clk 0:00:56]} 29. Ke2 {[%clk 0:00:31]}  f6 {[%clk 0:00:56]} 30. a4 {[%clk 0:00:28]}  Rg8 {[%clk 0:00:49]} 31. Kf3 {[%clk 0:00:26]}  Rd8 {[%clk 0:00:49]} 32. Ke2 {[%clk 0:00:26]}  Bf4 {[%clk 0:00:48]} 33. Bb3 {[%clk 0:00:20]}  Rd2+ {[%clk 0:00:47]} 34. Kf3 {[%clk 0:00:21]}  Be5 {[%clk 0:00:46]} 35. Bc2 {[%clk 0:00:18]}  a6 {[%clk 0:00:43]} 36. bxa6 {[%clk 0:00:17]}  bxa6 {[%clk 0:00:44]} 37. g3 {[%clk 0:00:16]}  hxg3 {[%clk 0:00:32]} 38. fxg3 {[%clk 0:00:17]}  Kb7 {[%clk 0:00:32]} 39. h4 {[%clk 0:00:17]}  Kb6 {[%clk 0:00:31]} 40. h5 {[%clk 0:00:17]}  c5 {[%clk 0:00:32]} 41. Kg4 {[%clk 0:00:15]}  Rg2 {[%clk 0:00:31]} 42. h6 {[%clk 0:00:14]}  Rxg3+ {[%clk 0:00:31]} 43. Kf5 {[%clk 0:00:15]}  Rg5+ {[%clk 0:00:30]} 44. Ke6 {[%clk 0:00:15]}  Rh5 {[%clk 0:00:31]} 45. a5+ {[%clk 0:00:12]}  Kb5 {[%clk 0:00:30]} 46. Bd3 {[%clk 0:00:12]}  Rh3 {[%clk 0:00:25]} 47. Be2 {[%clk 0:00:10]}  Rxh6 {[%clk 0:00:17]} 48. Kd5 {[%clk 0:00:07]}  Kxa5 {[%clk 0:00:16]} 49. Rxc5+ {[%clk 0:00:07]}  Kb6 {[%clk 0:00:17]} 50. Rc6+ {[%clk 0:00:08]}  Kb7 {[%clk 0:00:17]} 51. Bxa6+ {[%clk 0:00:07]}  Ka7 {[%clk 0:00:18]} 52. Bb5 {[%clk 0:00:07]}  Rh2 {[%clk 0:00:17]} 53. Ra6+ {[%clk 0:00:05]}  Kb7 {[%clk 0:00:17]} 54. Ra4 {[%clk 0:00:06]}  Rd2+ {[%clk 0:00:17]} 55. Ke6 {[%clk 0:00:06]}  Rd6+ {[%clk 0:00:18]} 56. Kf5 {[%clk 0:00:06]}  Rb6 {[%clk 0:00:17]} 57. Bc4 {[%clk 0:00:06]}  Rd6 {[%clk 0:00:17]} 58. Bd5+ {[%clk 0:00:07]}  Kb6 {[%clk 0:00:18]} 59. Rb4+ {[%clk 0:00:08]}  Kc5 {[%clk 0:00:18]} 60. Rc4+ {[%clk 0:00:08]}  Kb5 {[%clk 0:00:18]} 61. Rc8 {[%clk 0:00:09]}  Kb4 {[%clk 0:00:16]} 62. Rb8+ {[%clk 0:00:09]}  Kc3 {[%clk 0:00:16]} 63. Rc8+ {[%clk 0:00:10]}  Kd4 {[%clk 0:00:16]} 64. Rc4+ {[%clk 0:00:10]}  Kd3 {[%clk 0:00:16]} 65. Ra4 {[%clk 0:00:11]}  Ke3 {[%clk 0:00:16]} 66. Ra3+ {[%clk 0:00:11]}  Kd2 {[%clk 0:00:17]} 67. Ra2+ {[%clk 0:00:12]}  Kc1 {[%clk 0:00:17]} 68. Re2 {[%clk 0:00:11]}  Kd1 {[%clk 0:00:18]} 69. Rg2 {[%clk 0:00:11]}  Ke1 {[%clk 0:00:18]} 70. Kg4 {[%clk 0:00:11]}  Rb6 {[%clk 0:00:17]} 71. Kf3 {[%clk 0:00:11]}  Rb2 {[%clk 0:00:13]} 72. Rg1+ {[%clk 0:00:09]}  Kd2 {[%clk 0:00:14]} 73. Rg2+ {[%clk 0:00:09]}  Kc3 {[%clk 0:00:14]} 74. Rxb2 {[%clk 0:00:07]}  Kxb2 {[%clk 0:00:15]} 75. Kg4 {[%clk 0:00:08]}  Kc3 {[%clk 0:00:15]} 76. Kf5 {[%clk 0:00:09]}  Kd4 {[%clk 0:00:16]} 77. Be6 {[%clk 0:00:10]}  Kc3 {[%clk 0:00:16]} 78. Bf7 {[%clk 0:00:11]}  Kd4 {[%clk 0:00:17]} 79. Bg6 {[%clk 0:00:12]}  Kc3 {[%clk 0:00:18]} 80. Bh7 {[%clk 0:00:12]}  Kd4 {[%clk 0:00:18]} 81. Bg6 {[%clk 0:00:13]}  Kc3 {[%clk 0:00:19]} 82. Bh7 {[%clk 0:00:14]}  Kd4 {[%clk 0:00:20]} 83. Bg6 {[%clk 0:00:15]} 1/2-1/2


[Site "https://www.chess.com"]

[Event "Titled Tuesday Blitz April 18 Early 2023"]
[White "Girya, Olga"]
[Black "Gil Alba, Hector Luis"]
[WhiteFideId "4195752"]
[BlackFideId "3504670"]
[WhiteElo "2263"]
[BlackElo "2331"]
[Result "1-0"]
[Round "06"]
[TimeControl "180+2"]
[Date "2023.04.18"]
[WhiteClock "0:00:56"]
[BlackClock "0:01:09"]

1. d4 {[%clk 0:03:00]}  Nf6 {[%clk 0:02:59]} 2. Nf3 {[%clk 0:03:01]}  g6 {[%clk 0:02:57]} 3. Bg5 {[%clk 0:03:00]}  Bg7 {[%clk 0:02:57]} 4. Nbd2 {[%clk 0:03:01]}  d6 {[%clk 0:02:56]} 5. c3 {[%clk 0:02:58]}  O-O {[%clk 0:02:56]} 6. e4 {[%clk 0:02:58]}  Nbd7 {[%clk 0:02:51]} 7. Bc4 {[%clk 0:02:57]}  e5 {[%clk 0:02:51]} 8. O-O {[%clk 0:02:57]}  Qe7 {[%clk 0:02:50]} 9. Re1 {[%clk 0:02:57]}  c6 {[%clk 0:02:48]} 10. a4 {[%clk 0:02:54]}  a5 {[%clk 0:02:47]} 11. Qc2 {[%clk 0:02:53]}  h6 {[%clk 0:02:46]} 12. Bh4 {[%clk 0:02:53]}  Re8 {[%clk 0:02:41]} 13. Bf1 {[%clk 0:02:51]}  g5 {[%clk 0:02:40]} 14. Bg3 {[%clk 0:02:51]}  Nh5 {[%clk 0:02:40]} 15. Nc4 {[%clk 0:02:46]}  Nxg3 {[%clk 0:02:33]} 16. hxg3 {[%clk 0:02:46]}  exd4 {[%clk 0:02:33]} 17. cxd4 {[%clk 0:02:42]}  Bf8 {[%clk 0:02:26]} 18. Bd3 {[%clk 0:02:33]}  Qd8 {[%clk 0:02:17]} 19. Rad1 {[%clk 0:02:24]}  Nb6 {[%clk 0:02:15]} 20. e5 {[%clk 0:01:56]}  Nxc4 {[%clk 0:02:09]} 21. Bxc4 {[%clk 0:01:57]}  d5 {[%clk 0:02:09]} 22. Ba2 {[%clk 0:01:57]}  f5 {[%clk 0:01:50]} 23. exf6 {[%clk 0:01:53]}  Rxe1+ {[%clk 0:01:48]} 24. Rxe1 {[%clk 0:01:54]}  Qxf6 {[%clk 0:01:48]} 25. Bb1 {[%clk 0:01:53]}  Qf7 {[%clk 0:01:34]} 26. Ne5 {[%clk 0:01:26]}  Qg7 {[%clk 0:01:32]} 27. f4 {[%clk 0:00:59]}  gxf4 {[%clk 0:01:29]} 28. gxf4 {[%clk 0:00:59]}  Bg4 {[%clk 0:01:11]} 29. Nxg4 {[%clk 0:00:57]}  Qxg4 {[%clk 0:01:09]} 30. Qh7# {[%clk 0:00:56]} 1-0


[Site "https://www.chess.com"]

[Event "Titled Tuesday Blitz April 18 Early 2023"]
[White "littlepillow2010"]
[Black "Hirneise, Jens"]
[BlackFideId "24614734"]
[WhiteElo "2425"]
[BlackElo "2345"]
[Result "0-1"]
[Round "06"]
[TimeControl "180+2"]
[Date "2023.04.18"]
[WhiteClock "0:00:03"]
[BlackClock "0:00:57"]

1. e4 {[%clk 0:03:00]}  d6 {[%clk 0:02:53]} 2. d4 {[%clk 0:02:59]}  Nf6 {[%clk 0:02:53]} 3. Nc3 {[%clk 0:03:00]}  e5 {[%clk 0:02:54]} 4. dxe5 {[%clk 0:02:59]}  dxe5 {[%clk 0:02:55]} 5. Qxd8+ {[%clk 0:02:59]}  Kxd8 {[%clk 0:02:56]} 6. Nf3 {[%clk 0:02:59]}  Bd6 {[%clk 0:02:54]} 7. Bg5 {[%clk 0:02:56]}  c6 {[%clk 0:02:48]} 8. O-O-O {[%clk 0:02:37]}  Kc7 {[%clk 0:02:39]} 9. Bxf6 {[%clk 0:02:30]}  gxf6 {[%clk 0:02:31]} 10. Nh4 {[%clk 0:02:30]}  a6 {[%clk 0:02:24]} 11. Be2 {[%clk 0:02:27]}  b5 {[%clk 0:02:21]} 12. h3 {[%clk 0:02:24]}  Be6 {[%clk 0:02:19]} 13. Bg4 {[%clk 0:02:18]}  Nd7 {[%clk 0:02:09]} 14. b3 {[%clk 0:01:45]}  h5 {[%clk 0:02:00]} 15. Bf5 {[%clk 0:01:26]}  Bc5 {[%clk 0:02:00]} 16. Rhf1 {[%clk 0:01:21]}  a5 {[%clk 0:01:59]} 17. a4 {[%clk 0:01:15]}  Bb4 {[%clk 0:01:44]} 18. Kb2 {[%clk 0:00:40]}  Bxc3+ {[%clk 0:01:24]} 19. Kxc3 {[%clk 0:00:41]}  bxa4 {[%clk 0:01:25]} 20. bxa4 {[%clk 0:00:42]}  Nc5 {[%clk 0:01:24]} 21. Ra1 {[%clk 0:00:34]}  Rab8 {[%clk 0:01:17]} 22. f4 {[%clk 0:00:14]}  Bxf5 {[%clk 0:01:08]} 23. exf5 {[%clk 0:00:09]}  Rb4 {[%clk 0:01:03]} 24. g3 {[%clk 0:00:04]}  Rd8 {[%clk 0:00:59]} 25. Ra3 {[%clk 0:00:03]}  Ne4# {[%clk 0:00:57]} 0-1


[Site "https://www.chess.com"]

[Event "Titled Tuesday Blitz April 18 Early 2023"]
[White "Liu, Casper"]
[Black "SashaKuzhilniy"]
[WhiteFideId "1454153"]
[WhiteElo "2221"]
[BlackElo "2559"]
[Result "0-1"]
[Round "06"]
[TimeControl "180+2"]
[Date "2023.04.18"]
[WhiteClock "0:00:04"]
[BlackClock "0:00:58"]

1. e4 {[%clk 0:03:00]}  d5 {[%clk 0:03:00]} 2. exd5 {[%clk 0:03:00]}  Qxd5 {[%clk 0:03:00]} 3. Qf3 {[%clk 0:02:58]}  Qxf3 {[%clk 0:02:59]} 4. Nxf3 {[%clk 0:02:59]}  Bf5 {[%clk 0:02:51]} 5. c3 {[%clk 0:02:50]}  h6 {[%clk 0:02:45]} 6. d4 {[%clk 0:02:49]}  e6 {[%clk 0:02:45]} 7. Bf4 {[%clk 0:02:49]}  c6 {[%clk 0:02:45]} 8. Na3 {[%clk 0:02:49]}  Bxa3 {[%clk 0:02:38]} 9. bxa3 {[%clk 0:02:50]}  Nd7 {[%clk 0:02:36]} 10. Kd2 {[%clk 0:02:43]}  Ngf6 {[%clk 0:02:33]} 11. Bd3 {[%clk 0:02:36]}  Ne4+ {[%clk 0:02:33]} 12. Ke3 {[%clk 0:02:23]}  Nxc3 {[%clk 0:02:31]} 13. Bxf5 {[%clk 0:02:23]}  Nd5+ {[%clk 0:02:28]} 14. Kd2 {[%clk 0:02:22]}  exf5 {[%clk 0:02:13]} 15. Rhe1+ {[%clk 0:02:17]}  Kd8 {[%clk 0:02:11]} 16. Bd6 {[%clk 0:02:08]}  N7f6 {[%clk 0:02:02]} 17. Ne5 {[%clk 0:01:43]}  Ne4+ {[%clk 0:01:57]} 18. Rxe4 {[%clk 0:01:43]}  fxe4 {[%clk 0:01:58]} 19. Nxf7+ {[%clk 0:01:44]}  Kd7 {[%clk 0:01:58]} 20. Nxh8 {[%clk 0:01:45]}  Rxh8 {[%clk 0:01:56]} 21. Be5 {[%clk 0:01:43]}  Rf8 {[%clk 0:01:52]} 22. Ke2 {[%clk 0:01:11]}  h5 {[%clk 0:01:50]} 23. Bxg7 {[%clk 0:01:09]}  Rg8 {[%clk 0:01:50]} 24. Be5 {[%clk 0:01:08]}  Rxg2 {[%clk 0:01:48]} 25. Bg3 {[%clk 0:01:09]}  h4 {[%clk 0:01:48]} 26. Kf1 {[%clk 0:01:04]}  h3 {[%clk 0:01:37]} 27. Rb1 {[%clk 0:00:20]}  b5 {[%clk 0:01:35]} 28. Rb3 {[%clk 0:00:09]}  Ke6 {[%clk 0:01:21]} 29. Be5 {[%clk 0:00:09]}  e3 {[%clk 0:01:18]} 30. fxe3 {[%clk 0:00:09]}  Rxa2 {[%clk 0:01:18]} 31. e4 {[%clk 0:00:09]}  Nb6 {[%clk 0:01:17]} 32. Rxh3 {[%clk 0:00:09]}  Nc4 {[%clk 0:01:15]} 33. Rh6+ {[%clk 0:00:10]}  Kd7 {[%clk 0:01:15]} 34. h4 {[%clk 0:00:09]}  Nxe5 {[%clk 0:01:12]} 35. dxe5 {[%clk 0:00:10]}  Rxa3 {[%clk 0:01:13]} 36. h5 {[%clk 0:00:10]}  b4 {[%clk 0:01:12]} 37. Rh7+ {[%clk 0:00:09]}  Ke6 {[%clk 0:01:12]} 38. h6 {[%clk 0:00:09]}  Rh3 {[%clk 0:01:12]} 39. Kg2 {[%clk 0:00:09]}  Rh5 {[%clk 0:01:11]} 40. Rc7 {[%clk 0:00:06]}  Kxe5 {[%clk 0:01:09]} 41. h7 {[%clk 0:00:07]}  Kxe4 {[%clk 0:01:06]} 42. Kf2 {[%clk 0:00:05]}  a5 {[%clk 0:01:04]} 43. Ke2 {[%clk 0:00:05]}  Kd5 {[%clk 0:01:02]} 44. Ra7 {[%clk 0:00:04]}  Kc4 {[%clk 0:01:00]} 45. Kd2 {[%clk 0:00:05]}  c5 {[%clk 0:00:59]} 46. Kc2 {[%clk 0:00:03]}  Rh2+ {[%clk 0:00:59]} 47. Kc1 {[%clk 0:00:03]}  Kc3 {[%clk 0:01:00]} 48. Kb1 {[%clk 0:00:03]}  Rh1+ {[%clk 0:00:57]} 49. Ka2 {[%clk 0:00:03]}  b3+ {[%clk 0:00:58]} 50. Ka3 {[%clk 0:00:04]}  Ra1# {[%clk 0:00:58]} 0-1


[Site "https://www.chess.com"]

[Event "Titled Tuesday Blitz April 18 Early 2023"]
[White "koncheto"]
[Black "Schuh, Karsten"]
[BlackFideId "4637950"]
[WhiteElo "2547"]
[BlackElo "2138"]
[Result "0-1"]
[Round "06"]
[TimeControl "180+2"]
[Date "2023.04.18"]
[WhiteClock "0:01:48"]
[BlackClock "0:02:00"]

1. e4 {[%clk 0:03:00]}  c5 {[%clk 0:02:59]} 2. Nf3 {[%clk 0:03:01]}  Nc6 {[%clk 0:03:00]} 3. d4 {[%clk 0:03:01]}  cxd4 {[%clk 0:03:00]} 4. Nxd4 {[%clk 0:03:02]}  Qc7 {[%clk 0:03:01]} 5. c4 {[%clk 0:03:01]}  e6 {[%clk 0:03:00]} 6. Nc3 {[%clk 0:03:02]}  Nf6 {[%clk 0:02:58]} 7. Be2 {[%clk 0:03:02]}  a6 {[%clk 0:02:58]} 8. O-O {[%clk 0:03:02]}  Bb4 {[%clk 0:02:57]} 9. Qd3 {[%clk 0:03:01]}  O-O {[%clk 0:02:50]} 10. f3 {[%clk 0:02:58]}  Nxd4 {[%clk 0:02:49]} 11. Be3 {[%clk 0:02:44]}  Nxe2+ {[%clk 0:02:48]} 12. Nxe2 {[%clk 0:02:44]}  Bc5 {[%clk 0:02:43]} 13. Rac1 {[%clk 0:02:38]}  b6 {[%clk 0:02:42]} 14. Kh1 {[%clk 0:02:37]}  Bxe3 {[%clk 0:02:40]} 15. Qxe3 {[%clk 0:02:38]}  Bb7 {[%clk 0:02:40]} 16. g4 {[%clk 0:02:37]}  d6 {[%clk 0:02:39]} 17. g5 {[%clk 0:02:37]}  Nd7 {[%clk 0:02:38]} 18. h4 {[%clk 0:02:33]}  Qc5 {[%clk 0:02:28]} 19. Qf4 {[%clk 0:02:31]}  Qe5 {[%clk 0:02:25]} 20. Qd2 {[%clk 0:02:30]}  Nc5 {[%clk 0:02:22]} 21. Qe3 {[%clk 0:02:06]}  f5 {[%clk 0:02:12]} 22. gxf6 {[%clk 0:02:05]}  Rxf6 {[%clk 0:02:12]} 23. Rg1 {[%clk 0:01:48]}  Rxf3 {[%clk 0:02:00]} 0-1


[Site "https://www.chess.com"]

[Event "Titled Tuesday Blitz April 18 Early 2023"]
[White "Womacka, Mathias"]
[Black "mrithyunjay"]
[WhiteFideId "4611390"]
[WhiteElo "2377"]
[BlackElo "2267"]
[Result "0-1"]
[Round "06"]
[TimeControl "180+2"]
[Date "2023.04.18"]
[WhiteClock "0:00:20"]
[BlackClock "0:01:28"]

1. e4 {[%clk 0:03:00]}  c5 {[%clk 0:02:59]} 2. Nf3 {[%clk 0:03:00]}  d6 {[%clk 0:02:59]} 3. d4 {[%clk 0:02:59]}  cxd4 {[%clk 0:03:00]} 4. Nxd4 {[%clk 0:03:00]}  Nf6 {[%clk 0:03:01]} 5. Nc3 {[%clk 0:03:00]}  a6 {[%clk 0:03:01]} 6. Be2 {[%clk 0:02:59]}  e5 {[%clk 0:03:01]} 7. Nb3 {[%clk 0:02:59]}  Be7 {[%clk 0:03:01]} 8. O-O {[%clk 0:02:59]}  O-O {[%clk 0:03:02]} 9. Kh1 {[%clk 0:02:59]}  b5 {[%clk 0:03:00]} 10. a4 {[%clk 0:02:58]}  b4 {[%clk 0:03:00]} 11. Nd5 {[%clk 0:02:58]}  Bb7 {[%clk 0:02:57]} 12. Nxe7+ {[%clk 0:02:31]}  Qxe7 {[%clk 0:02:56]} 13. f3 {[%clk 0:02:31]}  a5 {[%clk 0:02:55]} 14. Bg5 {[%clk 0:02:23]}  Nbd7 {[%clk 0:02:52]} 15. Qd2 {[%clk 0:02:14]}  h6 {[%clk 0:02:51]} 16. Bh4 {[%clk 0:02:11]}  Rfc8 {[%clk 0:02:37]} 17. Rfd1 {[%clk 0:01:57]}  d5 {[%clk 0:02:19]} 18. exd5 {[%clk 0:01:50]}  Qd6 {[%clk 0:02:18]} 19. c4 {[%clk 0:01:34]}  bxc3 {[%clk 0:02:15]} 20. bxc3 {[%clk 0:01:35]}  Bxd5 {[%clk 0:02:14]} 21. c4 {[%clk 0:01:33]}  Qb6 {[%clk 0:02:14]} 22. cxd5 {[%clk 0:01:15]}  Qxb3 {[%clk 0:02:12]} 23. Bb5 {[%clk 0:01:15]}  Rc2 {[%clk 0:02:09]} 24. Qd3 {[%clk 0:01:06]}  Qxd3 {[%clk 0:02:07]} 25. Rxd3 {[%clk 0:01:05]}  Rac8 {[%clk 0:02:06]} 26. Kg1 {[%clk 0:00:55]}  g5 {[%clk 0:02:04]} 27. Bg3 {[%clk 0:00:52]}  Nc5 {[%clk 0:01:52]} 28. Re3 {[%clk 0:00:46]}  e4 {[%clk 0:01:51]} 29. d6 {[%clk 0:00:39]}  exf3 {[%clk 0:01:47]} 30. Rxf3 {[%clk 0:00:35]}  Nce4 {[%clk 0:01:46]} 31. Re1 {[%clk 0:00:23]}  Rd8 {[%clk 0:01:38]} 32. Be5 {[%clk 0:00:21]}  g4 {[%clk 0:01:29]} 33. Rxf6 {[%clk 0:00:20]}  Nxf6 {[%clk 0:01:28]} 34. Bxf6 {[%clk 0:00:20]}  Rxd6 {[%clk 0:01:29]} 35. Re8+ {[%clk 0:00:20]}  Kh7 {[%clk 0:01:29]} 36. Bd3+ {[%clk 0:00:20]}  Rxd3 {[%clk 0:01:28]} 0-1


[Site "https://www.chess.com"]

[Event "Titled Tuesday Blitz April 18 Early 2023"]
[White "hsd2016"]
[Black "Devaev, Alexander"]
[BlackFideId "4169395"]
[WhiteElo "2186"]
[BlackElo "2204"]
[Result "1-0"]
[Round "06"]
[TimeControl "180+2"]
[Date "2023.04.18"]
[WhiteClock "0:00:05"]
[BlackClock "0:00:09"]

1. e4 {[%clk 0:02:56]}  c6 {[%clk 0:02:59]} 2. d4 {[%clk 0:02:56]}  d5 {[%clk 0:03:00]} 3. Nd2 {[%clk 0:02:57]}  dxe4 {[%clk 0:03:00]} 4. Nxe4 {[%clk 0:02:58]}  Bf5 {[%clk 0:03:00]} 5. Ng3 {[%clk 0:02:58]}  Bg6 {[%clk 0:03:01]} 6. h4 {[%clk 0:02:59]}  h6 {[%clk 0:03:01]} 7. Nf3 {[%clk 0:03:00]}  Nd7 {[%clk 0:03:02]} 8. h5 {[%clk 0:03:00]}  Bh7 {[%clk 0:03:02]} 9. Bd3 {[%clk 0:03:01]}  Bxd3 {[%clk 0:03:03]} 10. Qxd3 {[%clk 0:03:02]}  Qc7 {[%clk 0:03:03]} 11. Bd2 {[%clk 0:03:00]}  e6 {[%clk 0:03:04]} 12. O-O-O {[%clk 0:03:00]}  Ngf6 {[%clk 0:03:04]} 13. Ne4 {[%clk 0:03:00]}  O-O-O {[%clk 0:03:05]} 14. g3 {[%clk 0:03:01]}  Nc5 {[%clk 0:03:04]} 15. Nxc5 {[%clk 0:02:55]}  Bxc5 {[%clk 0:03:04]} 16. Bf4 {[%clk 0:02:47]}  Bd6 {[%clk 0:03:04]} 17. Bxd6 {[%clk 0:02:45]}  Rxd6 {[%clk 0:03:05]} 18. Ne5 {[%clk 0:02:39]}  Rhd8 {[%clk 0:03:03]} 19. Qc4 {[%clk 0:02:05]}  Rd5 {[%clk 0:02:54]} 20. f4 {[%clk 0:02:02]}  c5 {[%clk 0:02:41]} 21. dxc5 {[%clk 0:01:59]}  Rxc5 {[%clk 0:02:41]} 22. Rxd8+ {[%clk 0:01:57]}  Kxd8 {[%clk 0:02:39]} 23. Rd1+ {[%clk 0:01:43]}  Kc8 {[%clk 0:02:35]} 24. Qa4 {[%clk 0:01:41]}  Ra5 {[%clk 0:02:16]} 25. Qb4 {[%clk 0:01:37]}  Rc5 {[%clk 0:02:11]} 26. Qa4 {[%clk 0:01:35]}  a6 {[%clk 0:02:06]} 27. Rd2 {[%clk 0:00:58]}  Kb8 {[%clk 0:01:48]} 28. a3 {[%clk 0:00:52]}  Ka7 {[%clk 0:01:47]} 29. Qd4 {[%clk 0:00:48]}  Kb8 {[%clk 0:01:27]} 30. Qd8+ {[%clk 0:00:44]}  Ka7 {[%clk 0:01:26]} 31. Qd4 {[%clk 0:00:18]}  b6 {[%clk 0:01:14]} 32. Qe3 {[%clk 0:00:11]}  Nd5 {[%clk 0:01:08]} 33. Qe4 {[%clk 0:00:12]}  f5 {[%clk 0:01:03]} 34. Qe2 {[%clk 0:00:08]}  b5 {[%clk 0:00:41]} 35. Qf2 {[%clk 0:00:07]}  Kb7 {[%clk 0:00:41]} 36. Nd3 {[%clk 0:00:05]}  Rc4 {[%clk 0:00:33]} 37. Qe2 {[%clk 0:00:05]}  Re4 {[%clk 0:00:32]} 38. Qf2 {[%clk 0:00:05]}  Rc4 {[%clk 0:00:28]} 39. Re2 {[%clk 0:00:04]}  Qe7 {[%clk 0:00:16]} 40. Qe1 {[%clk 0:00:05]}  Rc6 {[%clk 0:00:14]} 41. Qa5 {[%clk 0:00:05]}  Qc7 {[%clk 0:00:12]} 42. Qd2 {[%clk 0:00:05]}  Nb6 {[%clk 0:00:10]} 43. Nb4 {[%clk 0:00:05]}  Rd6 {[%clk 0:00:08]} 44. Qe3 {[%clk 0:00:03]}  Nc4 {[%clk 0:00:08]} 45. Qf3+ {[%clk 0:00:04]}  Ka7 {[%clk 0:00:08]} 46. Qf2+ {[%clk 0:00:04]}  Qb6 {[%clk 0:00:08]} 47. Qxb6+ {[%clk 0:00:03]}  Kxb6 {[%clk 0:00:09]} 48. b3 {[%clk 0:00:04]}  Na5 {[%clk 0:00:06]} 49. Kb2 {[%clk 0:00:03]}  Nb7 {[%clk 0:00:06]} 50. Nd3 {[%clk 0:00:03]}  Nc5 {[%clk 0:00:05]} 51. Nxc5 {[%clk 0:00:04]}  Kxc5 {[%clk 0:00:06]} 52. Kc3 {[%clk 0:00:03]}  Kc6 {[%clk 0:00:05]} 53. Re5 {[%clk 0:00:01]}  Kb6 {[%clk 0:00:06]} 54. Re2 {[%clk 0:00:01]}  Rc6+ {[%clk 0:00:06]} 55. Kb2 {[%clk 0:00:01]}  Rd6 {[%clk 0:00:07]} 56. Re3 {[%clk 0:00:02]}  Kc6 {[%clk 0:00:07]} 57. Kc3 {[%clk 0:00:02]}  Kc5 {[%clk 0:00:07]} 58. Re2 {[%clk 0:00:03]}  Kc6 {[%clk 0:00:06]} 59. Re5 {[%clk 0:00:03]}  a5 {[%clk 0:00:06]} 60. a4 {[%clk 0:00:04]}  bxa4 {[%clk 0:00:06]} 61. bxa4 {[%clk 0:00:04]}  Kb6 {[%clk 0:00:06]} 62. Rb5+ {[%clk 0:00:04]}  Ka6 {[%clk 0:00:07]} 63. Re5 {[%clk 0:00:04]}  Rc6+ {[%clk 0:00:08]} 64. Kb3 {[%clk 0:00:05]}  Rb6+ {[%clk 0:00:08]} 65. Ka3 {[%clk 0:00:06]}  Rc6 {[%clk 0:00:09]} 66. Kb2 {[%clk 0:00:06]}  Rb6+ {[%clk 0:00:09]} 67. Kc3 {[%clk 0:00:06]}  Rc6+ {[%clk 0:00:09]} 68. Kb3 {[%clk 0:00:06]}  Kb6 {[%clk 0:00:10]} 69. c4 {[%clk 0:00:06]}  Ka6 {[%clk 0:00:09]} 70. Kc3 {[%clk 0:00:06]}  Rb6 {[%clk 0:00:09]} 71. c5 {[%clk 0:00:05]}  Rd6 {[%clk 0:00:09]} 72. Kc4 {[%clk 0:00:06]}  Rc6 {[%clk 0:00:09]} 73. Re1 {[%clk 0:00:05]}  Kb7 {[%clk 0:00:06]} 74. Rb1+ {[%clk 0:00:05]}  Kc7 {[%clk 0:00:06]} 75. Rb5 {[%clk 0:00:06]}  e5 {[%clk 0:00:06]} 76. fxe5 {[%clk 0:00:05]}  f4 {[%clk 0:00:06]} 77. gxf4 {[%clk 0:00:06]}  Re6 {[%clk 0:00:07]} 78. Rxa5 {[%clk 0:00:05]}  Kb7 {[%clk 0:00:07]} 79. Rb5+ {[%clk 0:00:05]}  Ka6 {[%clk 0:00:08]} 80. Rb1 {[%clk 0:00:05]}  Re7 {[%clk 0:00:07]} 81. Re1 {[%clk 0:00:05]}  Rf7 {[%clk 0:00:07]} 82. Re4 {[%clk 0:00:05]}  Ka5 {[%clk 0:00:07]} 83. e6 {[%clk 0:00:05]}  Rb7 {[%clk 0:00:08]} 84. Kd5 {[%clk 0:00:05]}  Rb4 {[%clk 0:00:08]} 85. Rxb4 {[%clk 0:00:04]}  Kxb4 {[%clk 0:00:09]} 86. e7 {[%clk 0:00:05]} 1-0


[Site "https://www.chess.com"]